bitfinex/quotes_SOLUSD_20241215
["timestamp","ask_amount","ask_price","bid_price","bid_amount"]
[1734286937629,23.776884,220.65,220.52,7.64460955]
[1734286937837,0.12549,220.62,220.48,19.76566347]
[1734286938132,0.12549,220.62,220.49,2.16]
[1734286938710,0.12549,220.62,220.48,27.41027302]
[1734286938711,23.776884,220.6,220.48,27.41027302]
[1734286943528,23.776884,220.6,220.48,7.64460955]
[1734286948146,23.776884,220.58,220.47,7.64460955]
[1734286948652,23.776884,220.58,220.48,7.64460955]
[1734286948829,15.9845,220.59,220.51,7.64460955]
[1734286948830,4.6513,220.59,220.51,7.64460955]
[1734286949330,11.3316,220.63,220.53,7.64460955]
[1734286949534,4.6513,220.64,220.56,7.64460955]
[1734286951746,23.776884,220.63,220.56,7.64460955]
[1734286952043,43.902374,220.68,220.56,7.64460955]
[1734286952344,0.12549,220.67,220.56,7.64460955]
[1734286953016,23.902374,220.66,220.56,7.64460955]
[1734286956421,23.902374,220.66,220.52,0.67995534]
[1734286956740,23.902374,220.66,220.54,7.64460955]
[1734286958359,23.902374,220.66,220.55,7.64460955]
[1734286960047,11.3291,220.67,220.57,7.64460955]
[1734286960245,4.6513,220.69,220.58,7.64460955]
[1734286960446,4.6513,220.69,220.59,7.64460955]
[1734286961635,23.776884,220.68,220.59,7.64460955]
[1734286962553,23.776884,220.7,220.61,7.64460955]
[1734286965771,23.776884,220.7,220.6,7.64460955]
[1734286973674,23.776884,220.7,220.61,20.0]
[1734286979390,11.57958,220.69,220.56,1.6376]
[1734286979584,0.25098,220.67,220.56,1.6376]
[1734286981688,0.25098,220.67,220.54,7.64460955]
[1734286982983,24.027864,220.65,220.56,20.0]
[1734286988172,24.027864,220.65,220.51,9.20530955]
[1734286988375,24.027864,220.63,220.49,7.64460955]
[1734286989566,24.027864,220.61,220.48,12.66585453]
[1734286989760,24.027864,220.61,220.49,7.64460955]
[1734286991095,24.027864,220.61,220.5,7.64460955]
[1734286994879,24.027864,220.61,220.49,7.64460955]
[1734286997276,24.027864,220.61,220.5,7.64460955]
[1734286998787,11.3296,220.66,220.53,27.64460955]
[1734286999104,23.902374,220.65,220.53,27.64460955]
[1734287000491,0.12549,220.65,220.54,7.64460955]
[1734287001073,11.3296,220.66,220.54,7.64460955]
[1734287002181,23.776884,220.65,220.54,7.64460955]
[1734287002708,0.12549,220.64,220.54,7.64460955]
[1734287004995,0.12549,220.64,220.53,7.64460955]
[1734287005218,0.12549,220.64,220.51,20.0]
[1734287005385,0.12549,220.64,220.55,20.0]
[1734287006024,0.25098,220.64,220.55,20.0]
[1734287006185,0.25098,220.64,220.48,14.21160955]
[1734287006391,24.027864,220.62,220.48,14.21160955]
[1734287006938,24.027864,220.62,220.48,6.567]
[1734287007123,24.027864,220.62,220.47,7.64460955]
[1734287007695,24.027864,220.62,220.5,20.0]
[1734287009018,24.027864,220.62,220.46,1.5844]
[1734287009209,24.027864,220.6,220.47,7.64460955]
[1734287010122,28.679164,220.6,220.46,9.22900955]
[1734287012496,28.679164,220.6,220.47,7.64460955]
[1734287012696,28.679164,220.6,220.46,29.22900955]
[1734287012921,28.679164,220.6,220.47,7.64460955]
[1734287014334,28.679164,220.6,220.5,7.64460955]
[1734287014499,28.679164,220.6,220.47,20.0]
[1734287014706,28.679164,220.6,220.49,7.64460955]
[1734287015006,28.679164,220.6,220.47,20.0]
[1734287015007,28.679164,220.6,220.5,7.64460955]
[1734287015321,4.6513,220.6,220.5,7.64460955]
[1734287015820,4.6513,220.6,220.51,7.64460955]
[1734287023942,4.6513,220.6,220.5,7.64460955]
[1734287028120,4.6513,220.6,220.51,7.64460955]
[1734287028452,4.6513,220.6,220.52,7.64460955]
[1734287029627,20.0,220.62,220.48,20.0]
[1734287029628,0.12549,220.64,220.55,7.64460955]
[1734287030745,0.12549,220.64,220.54,7.64460955]
[1734287032852,0.12549,220.64,220.55,7.64460955]
[1734287033659,15.9819,220.65,220.55,7.64460955]
[1734287037423,15.9819,220.65,220.54,7.64460955]
[1734287040446,0.12549,220.64,220.53,20.0]
[1734287040652,0.12549,220.62,220.53,20.0]
[1734287041045,0.12549,220.62,220.51,7.64460955]
[1734287041046,4.6513,220.65,220.57,7.64460955]
[1734287041236,75.43449,220.7,220.52,0.68007126]
[1734287041237,0.12549,220.69,220.6,7.64460955]
[1734287041443,4.6513,220.7,220.61,7.64460955]
[1734287041653,4.6513,220.7,220.62,7.64460955]
[1734287041955,1.7868585,220.74,220.62,7.64460955]
[1734287042160,4.6513,220.75,220.62,7.64460955]
[1734287042523,4.6513,220.75,220.57,0.6798114]
[1734287042524,0.12549,220.74,220.61,7.64460955]
[1734287042728,0.12549,220.74,220.62,7.12]
[1734287042963,15.9767,220.75,220.62,7.12]
[1734287043169,20.0,220.72,220.62,7.12]
[1734287043523,24.027864,220.71,220.62,7.12]
[1734287047556,24.027864,220.71,220.6,7.64460955]
[1734287048272,24.027864,220.71,220.59,7.64460955]
[1734287050946,24.027864,220.71,220.61,13.5]
[1734287053981,24.027864,220.69,220.61,13.5]
[1734287058188,24.027864,220.67,220.61,13.5]
[1734287063157,11.3286,220.68,220.61,13.5]
[1734287066385,23.902374,220.7,220.61,13.5]
[1734287066590,4.6513,220.75,220.61,21.14460955]
[1734287066793,23.776884,220.74,220.61,21.14460955]
[1734287067020,0.12549,220.73,220.61,21.14460955]
[1734287067401,11.3229,220.79,220.64,7.64460955]
[1734287067694,2.65598614,220.76,220.64,7.64460955]
[1734287068698,23.902374,220.75,220.64,7.64460955]
[1734287069797,13.10405031,220.79,220.65,7.64460955]
[1734287070098,11.3229,220.79,220.66,7.64460955]
[1734287070698,11.3229,220.79,220.65,7.64460955]
[1734287070902,2.77800706,220.78,220.63,2.21015068]
[1734287071108,2.77800706,220.78,220.65,7.64460955]
[1734287072479,2.77800706,220.78,220.66,7.64460955]
[1734287073098,11.3212,220.83,220.68,7.64460955]
[1734287073413,11.3212,220.83,220.7,7.64460955]
[1734287073704,0.12549,220.82,220.7,7.64460955]
[1734287074300,0.12549,220.82,220.69,27.64460955]
[1734287074680,24.027864,220.82,220.69,20.0]
[1734287075192,24.027864,220.82,220.7,20.0]
[1734287077895,24.027864,220.82,220.69,27.64460955]
[1734287079421,23.902374,220.82,220.71,7.64460955]
[1734287081797,20.0,220.85,220.74,7.64460955]
[1734287082040,35.221174,220.87,220.74,7.64460955]
[1734287082200,11.3188,220.87,220.75,14.10770955]
[1734287082536,4.6513,220.9,220.77,7.64460955]
[1734287082828,13.09651133,220.91,220.76,7.64460955]
[1734287083125,0.12549,220.9,220.76,7.64460955]
[1734287083415,11.3171,220.91,220.76,7.64460955]
[1734287083635,20.0,220.88,220.76,7.64460955]
[1734287084831,20.0,220.88,220.75,14.10770955]
[1734287085030,20.0,220.88,220.77,7.64460955]
[1734287085209,20.0,220.88,220.76,1.6616]
[1734287085210,11.3151,220.95,220.8,7.64460955]
[1734287085530,11.3151,220.95,220.76,2.34089817]
[1734287085531,11.3151,220.95,220.81,7.64460955]
[1734287087195,0.12549,220.93,220.81,7.64460955]
[1734287088233,2.8368384,220.93,220.8,27.64460955]
[1734287088537,0.12549,220.91,220.8,20.0]
[1734287092514,0.12549,220.91,220.8,7.64460955]
[1734287093838,1.84335832,220.98,220.78,20.0]
[1734287093839,1.84335832,220.98,220.83,20.0]
[1734287094027,18.95691,221.0,220.86,7.64460955]
[1734287094517,11.3123,221.0,220.86,7.64460955]
[1734287094713,2.67373955,220.97,220.86,7.64460955]
[1734287095117,22.67373955,220.97,220.86,7.64460955]
[1734287095616,20.0,220.97,220.86,7.64460955]
[1734287095821,11.3123,221.0,220.89,7.64460955]
[1734287096529,11.3123,221.0,220.89,9.27580955]
[1734287097130,0.5496558,221.03,220.9,13.97320955]
[1734287097434,3.28090655,221.03,220.91,7.64460955]
[1734287098441,3.28090655,221.03,220.92,7.64460955]
[1734287099708,3.28090655,221.03,220.94,7.64460955]
[1734287099709,0.5496558,221.03,220.94,7.64460955]
[1734287101257,0.5496558,221.03,220.96,7.64460955]
[1734287102127,0.5496558,221.03,220.98,7.64460955]
[1734287103726,0.5496558,221.03,220.97,9.25830955]
[1734287104049,0.5496558,221.03,220.97,1.6137]
[1734287105234,0.5496558,221.03,220.97,9.25830955]
[1734287106922,0.5496558,221.03,220.97,1.6137]
[1734287108635,0.5496558,221.03,220.92,7.82669838]
[1734287108837,0.5496558,221.03,220.93,7.64460955]
[1734287109032,0.5496558,221.03,220.94,7.64460955]
[1734287110738,0.5496558,221.03,220.96,7.64460955]
[1734287110935,0.5496558,221.03,220.97,7.64460955]
[1734287113070,0.5496558,221.03,220.99,7.64460955]
[1734287113279,0.5496558,221.03,221.0,7.64460955]
[1734287116755,0.5496558,221.03,221.01,7.64460955]
[1734287117197,0.5496558,221.03,220.98,6.6041]
[1734287117413,0.5496558,221.03,221.0,7.64460955]
[1734287118203,0.5496558,221.03,221.02,7.64460955]
[1734287119798,0.5496558,221.03,220.98,6.6041]
[1734287119799,0.5496558,221.03,220.99,7.64460955]
[1734287119963,0.5496558,221.03,221.0,7.64460955]
[1734287121379,0.5496558,221.03,220.99,7.64460955]
[1734287121767,0.5496558,221.03,221.0,7.64460955]
[1734287123883,0.5496558,221.03,221.01,7.64460955]
[1734287124493,0.5496558,221.03,221.02,7.64460955]
[1734287127990,23.776884,221.13,221.02,7.64460955]
[1734287128195,23.902374,221.13,221.01,20.0]
[1734287128395,23.902374,221.13,221.01,27.64460955]
[1734287128772,23.902374,221.13,221.01,20.0]
[1734287128971,23.902374,221.13,221.01,27.64460955]
[1734287131164,11.306,221.12,221.01,20.0]
[1734287131785,11.306,221.12,221.01,27.64460955]
[1734287136910,14.06483064,221.12,221.01,27.64460955]
[1734287137607,23.776884,221.11,221.01,27.64460955]
[1734287139704,23.776884,221.11,221.01,7.64460955]
[1734287140714,23.776884,221.11,221.0,1.5738]
[1734287140880,23.776884,221.11,221.0,9.21840955]
[1734287140881,0.12549,221.1,221.0,9.21840955]
[1734287141082,23.776884,221.09,221.0,9.21840955]
[1734287141907,23.776884,221.09,221.0,16.52805016]
[1734287142402,23.776884,221.09,221.01,14.95425016]
[1734287142715,23.776884,221.09,221.02,7.64460955]
[1734287143408,23.776884,221.09,221.01,14.95425016]
[1734287143980,23.776884,221.09,221.01,7.30964061]
[1734287149027,23.776884,221.07,220.96,5.61564353]
[1734287149593,0.12549,221.06,220.96,5.61564353]
[1734287149792,0.12549,221.06,220.93,7.64460955]
[1734287149793,0.25098,221.06,220.93,7.64460955]
[1734287150026,23.776884,221.03,220.94,7.64460955]
[1734287150198,23.776884,221.03,220.95,7.64460955]
[1734287151107,23.776884,221.03,220.96,7.64460955]
[1734287151308,20.0,221.05,220.97,7.64460955]
[1734287152030,20.0,221.05,220.98,7.64460955]
[1734287152627,23.776884,221.04,220.98,7.64460955]
[1734287153328,23.776884,221.07,220.98,7.64460955]
[1734287153903,23.776884,221.07,220.99,7.64460955]
[1734287154132,11.3081,221.08,220.99,7.64460955]
[1734287154320,23.776884,221.08,221.0,7.64460955]
[1734287154512,23.776884,221.1,221.0,7.64460955]
[1734287157425,23.776884,221.1,220.98,7.64460955]
[1734287158229,23.776884,221.08,220.98,7.64460955]
[1734287160336,23.776884,221.08,221.0,7.64460955]
[1734287162933,23.776884,221.08,220.98,6.86330727]
[1734287163246,23.776884,221.08,221.0,7.64460955]
[1734287164515,2.75883064,221.12,221.01,7.64460955]
[1734287164847,23.776884,221.11,221.01,9.30250955]
[1734287166515,11.304,221.16,221.03,7.64460955]
[1734287166858,11.304,221.16,221.06,7.64460955]
[1734287166859,13.95062498,221.16,221.06,7.64460955]
[1734287168024,23.776884,221.15,221.06,7.64460955]
[1734287168346,23.776884,221.15,221.04,26.86330727]
[1734287168523,23.776884,221.15,221.04,6.86330727]
[1734287168524,23.776884,221.12,221.04,6.86330727]
[1734287168931,23.776884,221.12,221.02,7.64460955]
[1734287170047,23.776884,221.12,221.01,8.45093908]
[1734287170366,23.776884,221.12,221.02,7.64460955]
[1734287172539,11.3055,221.13,221.02,7.64460955]
[1734287172954,24.027864,221.12,221.01,8.45093908]
[1734287173250,11.3065,221.11,221.01,8.45093908]
[1734287173422,11.3065,221.11,221.01,16.09554863]
[1734287173745,11.3065,221.11,221.01,9.30250955]
[1734287179361,11.3065,221.11,221.02,0.12549]
[1734287179539,20.0,221.18,221.05,7.64460955]
[1734287179732,0.12549,221.21,221.05,7.64460955]
[1734287180245,11.3029,221.19,221.06,27.64460955]
[1734287180446,0.12549,221.18,221.06,27.64460955]
[1734287180640,24.027864,221.18,221.06,20.0]
[1734287181355,24.027864,221.16,221.03,13.27505318]
[1734287181555,24.027864,221.16,221.01,9.30250955]
[1734287181749,0.12549,221.12,221.01,1.6579]
[1734287182057,24.027864,221.12,221.01,1.6579]
[1734287182846,11.3065,221.11,221.01,1.6579]
[1734287183059,23.902374,221.1,221.01,1.6579]
[1734287192782,23.902374,221.08,220.96,9.21550955]
[1734287194292,23.902374,221.08,220.97,7.64460955]
[1734287195770,23.902374,221.08,220.98,7.64460955]
[1734287197690,23.776884,221.08,220.98,7.64460955]
[1734287197992,23.776884,221.08,220.97,6.4820141]
[1734287198985,23.776884,221.08,220.97,4.9660141]
[1734287199191,23.776884,221.08,220.96,9.21550955]
[1734287200392,23.776884,221.06,220.98,20.0]
[1734287200693,23.776884,221.06,220.96,1.5709]
[1734287202790,23.776884,221.06,220.96,9.21550955]
[1734287211097,23.776884,221.06,220.96,1.5709]
[1734287211301,23.776884,221.06,220.94,7.64460955]
[1734287211510,11.3101,221.04,220.92,6.79303908]
[1734287211673,23.776884,221.03,220.91,7.93362521]
[1734287212579,23.776884,221.03,220.91,15.57823476]
[1734287214774,23.776884,221.03,220.92,7.64460955]
[1734287219687,4.6513,221.06,220.96,7.64460955]
[1734287220078,4.6513,221.06,220.93,6.37252521]
[1734287220079,4.6513,221.06,220.95,7.64460955]
[1734287220774,11.3086,221.07,220.95,7.64460955]
[1734287220974,23.776884,221.06,220.96,27.64460955]
[1734287223709,23.776884,221.06,220.96,20.0]
[1734287224005,23.776884,221.06,220.96,27.64460955]
[1734287224623,0.12549,221.09,220.98,7.64460955]
[1734287224808,23.902374,221.09,220.98,7.64460955]
[1734287225972,23.776884,221.09,220.98,7.64460955]
[1734287226588,23.776884,221.09,220.99,7.64460955]
[1734287227198,75.43449,221.16,221.03,7.64460955]
[1734287227199,11.3053,221.14,221.03,7.64460955]
[1734287227410,4.6513,221.16,221.05,7.64460955]
[1734287227591,11.3034,221.18,221.05,7.64460955]
[1734287229011,23.776884,221.17,221.05,7.64460955]
[1734287229891,23.776884,221.17,221.06,7.64460955]
[1734287233220,23.776884,221.17,221.07,7.64460955]
[1734287233406,23.776884,221.17,221.08,1.5125]
[1734287235294,23.776884,221.21,221.08,1.5125]
[1734287235511,0.12549,221.2,221.08,1.5125]
[1734287240329,0.12549,221.2,221.08,29.15710955]
[1734287240716,0.12549,221.2,221.08,21.5125]
[1734287246035,0.12549,221.2,221.08,19.9955]
[1734287247138,0.12549,221.2,221.09,6.0722]
[1734287250725,23.776884,221.18,221.09,6.0722]
[1734287251252,0.25098,221.17,221.08,1.6022]
[1734287252743,23.776884,221.15,221.08,1.6022]
[1734287256945,11.3014,221.21,221.08,1.6022]
[1734287257145,11.3014,221.21,221.08,9.24680955]
[1734287257447,11.3014,221.21,221.09,6.4187]
[1734287258245,23.902374,221.2,221.09,6.4187]
[1734287262285,23.776884,221.18,221.09,6.4187]
[1734287286471,0.12549,221.17,221.09,6.4187]
[1734287286677,23.776884,221.16,221.09,6.4187]
[1734287287862,2.90259026,221.21,221.09,6.4187]
[1734287288168,23.776884,221.19,221.09,6.4187]
[1734287300089,11.55398,221.18,221.09,6.4187]
[1734287300291,23.776884,221.17,221.09,6.4187]
[1734287304296,23.902374,221.14,221.09,6.4187]
[1734287308783,11.3055,221.13,221.09,6.4187]
[1734287308989,23.776884,221.12,221.09,6.4187]
[1734287309915,23.776884,221.12,221.08,1.6022]
[1734287310090,23.902374,221.1,221.04,6.4868]
[1734287326002,23.402374,221.1,221.04,6.4868]
[1734287330411,23.402374,221.1,221.04,6.0368]
[1734287330996,1.84180518,221.17,221.04,6.0368]
[1734287331216,24.027864,221.14,221.04,6.0368]
[1734287331704,23.776884,221.12,221.04,6.0368]
[1734287332327,0.12549,221.14,221.04,6.0368]
[1734287332924,20.0,221.12,221.04,6.0368]
[1734287333124,23.776884,221.11,221.04,6.0368]
[1734287333525,23.776884,221.13,221.04,6.0368]
[1734287335520,35.082484,221.13,221.04,6.0368]
[1734287349117,20.0,221.16,221.05,7.64460955]
[1734287349334,11.3037,221.17,221.05,7.64460955]
[1734287349546,11.3037,221.17,221.06,1.6218]
[1734287349863,11.3037,221.17,221.06,9.26640955]
[1734287350630,10.2860652,221.22,221.07,13.96820955]
[1734287350929,23.776884,221.2,221.07,13.96820955]
[1734287351239,23.776884,221.2,221.08,7.64460955]
[1734287351628,23.776884,221.2,221.09,1.6218]
[1734287353930,11.3025,221.19,221.09,1.6218]
[1734287354245,23.776884,221.18,221.09,1.6218]
[1734287357447,31.3035,221.17,221.09,1.6218]
[1734287357754,23.776884,221.16,221.09,1.6218]
[1734287367728,23.776884,221.14,221.09,1.6218]
[1734287396101,20.0,221.08,221.01,7.8765]
[1734287396595,20.0,221.09,221.01,7.8765]
[1734287396797,23.776884,221.08,221.01,7.8765]
[1734287399693,0.12549,221.07,221.01,7.8765]
[1734287402701,0.25098,221.07,221.01,7.8765]
[1734287402908,23.776884,221.05,221.01,7.8765]
[1734287403715,11.3074,221.1,221.01,7.8765]
[1734287403916,23.902374,221.09,221.01,7.8765]
[1734287405205,11.3081,221.08,221.01,7.8765]
[1734287406423,23.776884,221.05,221.01,7.8765]
[1734287413731,23.776884,221.05,220.93,8.0894]
[1734287413889,23.776884,221.05,220.94,7.71]
[1734287421524,23.776884,221.05,220.93,15.73400955]
[1734287423627,23.776884,221.05,220.94,8.0582]
[1734287424535,11.3091,221.06,220.96,23.41280955]
[1734287424734,11.3091,221.06,220.97,8.0582]
[1734287425413,11.3091,221.06,220.98,5.59]
[1734287429042,11.3091,221.06,220.97,8.0582]
[1734287431622,55.209974,221.09,220.97,8.0582]
[1734287431942,55.209974,221.09,220.98,20.24]
[1734287433115,23.902374,221.12,221.0,8.0582]
[1734287433444,11.306,221.13,221.01,7.9349]
[1734287433626,11.306,221.13,221.02,7.9349]
[1734287434524,0.12549,221.17,221.02,7.9349]
[1734287435044,24.027864,221.17,221.02,7.9349]
[1734287435744,0.25098,221.12,221.02,7.9349]
[1734287440331,23.902374,221.15,221.04,8.234]
[1734287440545,0.12549,221.15,221.06,6.5952]
[1734287441263,0.12549,221.15,221.07,1.6388]
[1734287442242,0.25098,221.15,221.07,1.6388]
[1734287442756,23.902374,221.18,221.07,1.6388]
[1734287442959,0.12549,221.17,221.07,1.6388]
[1734287443331,0.12549,221.17,221.07,9.28340955]
[1734287443550,0.25098,221.18,221.08,6.5952]
[1734287447666,0.25098,221.18,221.09,1.6388]
[1734287449256,20.0,221.16,221.09,1.6388]
[1734287449646,0.25098,221.18,221.09,1.6388]
[1734287450744,20.0,221.16,221.09,1.6388]
[1734287451252,0.25098,221.18,221.09,1.6388]
[1734287452865,0.12549,221.19,221.1,6.5952]
[1734287453673,0.25098,221.19,221.1,6.5952]
[1734287453862,0.12549,221.19,221.1,6.5952]
[1734287454061,20.12549,221.2,221.1,6.5952]
[1734287454380,20.0,221.2,221.1,6.5952]
[1734287455654,26.65058164,221.23,221.1,6.5952]
[1734287455861,0.12549,221.22,221.11,1.5193]
[1734287456163,0.25098,221.22,221.11,1.5193]
[1734287461873,0.12549,221.2,221.11,1.5193]
[1734287462059,24.027864,221.2,221.11,1.5193]
[1734287464582,0.12549,221.18,221.11,1.5193]
[1734287464774,24.027864,221.18,221.11,1.5193]
[1734287465159,24.027864,221.14,221.1,6.5952]
[1734287467985,24.027864,221.12,221.06,1.6023]
[1734287470576,0.25098,221.12,221.06,1.6023]
[1734287470880,23.902374,221.14,221.06,1.6023]
[1734287471285,0.12549,221.13,221.06,1.6023]
[1734287474165,13.0840172,221.18,221.06,1.6023]
[1734287474372,11.3034,221.18,221.07,7.64460955]
[1734287474563,0.12549,221.17,221.06,9.24690955]
[1734287475186,11.3034,221.18,221.06,9.24690955]
[1734287475388,20.0,221.19,221.06,9.24690955]
[1734287475592,0.25098,221.17,221.06,9.24690955]
[1734287477884,0.25098,221.17,221.06,1.6023]
[1734287478265,24.027864,221.15,221.06,1.6023]
[1734287480874,24.027864,221.13,221.06,1.6023]
[1734287483688,24.027864,221.11,221.06,1.6023]
[1734287498593,0.12549,221.09,221.06,1.6023]
[1734287498789,24.027864,221.09,221.06,1.6023]
[1734287503693,24.027864,221.09,221.0,8.1114]
[1734287503895,24.027864,221.07,221.01,6.77]
[1734287504915,24.027864,221.07,221.0,8.1114]
[1734287529643,20.0,221.09,221.0,8.1114]
[1734287532137,0.12549,221.11,221.01,1.6455]
[1734287532329,0.25098,221.11,221.03,1.6455]
[1734287532535,13.1000653,221.16,221.03,1.6455]
[1734287532952,0.12549,221.15,221.03,1.6455]
[1734287533332,11.3045,221.16,221.04,15.33980955]
[1734287533533,11.3045,221.16,221.05,15.22210955]
[1734287534039,0.12549,221.15,221.05,15.22210955]
[1734287534559,23.902374,221.15,221.05,15.22210955]
[1734287534763,23.902374,221.15,221.05,7.5775]
[1734287536966,0.12549,221.14,221.05,7.5775]
[1734287542970,24.027864,221.12,221.05,7.5775]
[1734287548174,0.12549,221.07,221.05,7.5775]
[1734287548378,24.027864,221.07,221.05,7.5775]
[1734287549671,24.027864,221.07,221.0,7.5592]
[1734287555377,24.027864,221.05,221.0,7.5592]
[1734287559186,0.12549,221.06,221.0,7.5592]
[1734287559484,11.3075,221.1,221.0,7.5592]
[1734287559780,0.12549,221.09,221.0,7.5592]
[1734287560664,0.12549,221.08,221.0,7.5592]
[1734287564550,24.027864,221.06,221.0,7.5592]
[1734287567678,24.027864,221.04,221.0,7.5592]
[1734287567884,24.027864,221.04,220.95,8.2934]
[1734287572384,0.12549,221.02,220.95,8.2934]
[1734287572579,24.027864,221.02,220.95,8.2934]
[1734287573579,24.027864,221.0,220.95,8.2934]
[1734287574471,24.027864,221.0,220.95,1.6581]
[1734287574695,24.027864,221.0,220.9,8.1519]
[1734287575562,11.3127,220.99,220.9,8.1519]
[1734287575777,24.027864,220.98,220.9,8.1519]
[1734287580277,23.776884,220.98,220.9,8.1519]
[1734287587578,0.25098,220.97,220.9,8.1519]
[1734287590287,0.12549,220.97,220.9,8.1519]
[1734287594905,0.12549,220.97,220.91,13.5]
[1734287595119,23.902374,220.99,220.91,13.5]
[1734287596003,0.12549,220.98,220.91,13.5]
[1734287599619,23.776884,220.99,220.91,21.14460955]
[1734287599819,11.3105,221.04,220.94,15.37770955]
[1734287599995,0.12549,221.09,220.95,7.64460955]
[1734287600199,2.78740572,221.07,220.95,7.64460955]
[1734287601109,0.25098,221.05,220.95,7.64460955]
[1734287602325,0.25098,221.05,220.94,7.7331]
[1734287602529,0.25098,221.05,220.95,7.64460955]
[1734287602897,0.25098,221.05,220.94,15.37770955]
[1734287603525,11.56068,221.05,220.94,7.7331]
[1734287603695,0.25098,221.03,220.94,7.7331]
[1734287607108,0.12549,220.99,220.94,7.7331]
[1734287607731,0.12549,221.0,220.94,7.7331]
[1734287608236,24.027864,220.98,220.94,7.7331]
[1734287609322,24.027864,220.98,220.89,7.7331]
[1734287610113,24.027864,220.96,220.89,7.7331]
[1734287618926,11.3147,220.95,220.89,7.7331]
[1734287619130,24.027864,220.94,220.89,7.7331]
[1734287619454,24.027864,220.94,220.84,7.8414]
[1734287620619,0.25098,220.9,220.84,7.8414]
[1734287621018,0.12549,220.9,220.84,7.8414]
[1734287621241,0.25098,220.91,220.84,7.8414]
[1734287622940,75.43449,220.98,220.85,7.64460955]
[1734287623146,11.3139,220.97,220.85,7.64460955]
[1734287623813,11.3139,220.97,220.87,7.64460955]
[1734287624232,0.12549,220.96,220.88,1.6441]
[1734287625230,24.027864,220.96,220.88,1.6441]
[1734287627367,24.027864,220.96,220.89,6.2328]
[1734287636833,23.776884,220.96,220.89,6.2328]
[1734287637040,23.902374,221.0,220.91,9.24270955]
[1734287637243,23.902374,221.0,220.92,6.6331]
[1734287637933,11.312,221.01,220.92,6.6331]
[1734287638138,11.43559,221.04,220.92,6.6331]
[1734287639130,0.25098,221.02,220.92,6.6331]
[1734287644564,0.12549,221.0,220.92,6.6331]
[1734287644765,24.027864,221.0,220.92,6.6331]
[1734287653066,24.027864,221.0,220.93,7.64460955]
[1734287653281,11.31,221.05,220.94,1.5356]
[1734287653485,11.31,221.05,220.95,6.1886]
[1734287653869,0.12549,221.04,220.95,6.1886]
[1734287654382,20.0,221.02,220.95,6.1886]
[1734287654566,24.027864,221.04,220.96,7.64460955]
[1734287656919,23.776884,221.04,220.99,6.2973]
[1734287657081,11.3079,221.09,221.0,7.64460955]
[1734287657284,11.306,221.13,221.01,9.20800955]
[1734287657830,11.306,221.13,221.01,1.5634]
[1734287658309,0.12549,221.12,221.01,1.5634]
[1734287659207,0.12549,221.11,221.01,1.5634]
[1734287660082,0.12549,221.11,221.02,7.64460955]
[1734287662391,0.12549,221.11,221.02,15.04460955]
[1734287662593,0.12549,221.11,221.04,6.6081]
[1734287662894,0.12549,221.11,221.04,14.25270955]
[1734287663385,0.12549,221.11,221.04,21.65270955]
[1734287663794,23.902374,221.12,221.05,9.14470955]
[1734287664428,23.902374,221.12,221.05,16.54470955]
[1734287666018,23.902374,221.12,221.05,8.9001]
[1734287667124,23.902374,221.12,221.05,1.5001]
[1734287667909,23.902374,221.12,221.05,9.14470955]
[1734287669298,24.027864,221.16,221.06,7.64460955]
[1734287673201,24.027864,221.16,221.07,14.06220955]
[1734287673409,24.027864,221.16,221.09,7.64460955]
[1734287679947,0.12549,221.16,221.07,7.9993]
[1734287680334,11.3013,221.22,221.15,6.1713]
[1734287680656,0.067,221.23,221.15,6.1713]
[1734287680950,0.12549,221.22,221.16,1.5528]
[1734287681157,0.067,221.23,221.16,1.5528]
[1734287681644,0.25098,221.22,221.16,1.5528]
[1734287682254,25.67638061,221.23,221.16,1.5528]
[1734287682255,1.89949661,221.23,221.16,1.5528]
[1734287682541,1.89949661,221.23,221.16,9.19740955]